bitfinex-derivatives/quotes_BTCF0:USTF0_20240825
["timestamp","ask_amount","ask_price","bid_price","bid_amount"]
[1724545439106,0.077589,64413.0,64407.0,0.04595957]
[1724545439407,0.3608,64408.0,64403.0,0.04595957]
[1724545439707,0.3608,64408.0,64406.0,0.077597]
[1724545439708,0.00011483,64407.0,64406.0,0.077597]
[1724545440101,0.00011483,64407.0,64406.0,0.543397]
[1724545440508,0.00011483,64407.0,64406.0,0.077597]
[1724545441012,0.00111483,64407.0,64406.0,0.091597]
[1724545442015,0.00211483,64407.0,64406.0,0.105597]
[1724545442513,0.00111483,64407.0,64406.0,0.091597]
[1724545442814,0.07971083,64407.0,64406.0,0.028]
[1724545443006,0.57181083,64407.0,64406.0,0.028]
[1724545444418,0.49421483,64407.0,64406.0,0.028]
[1724545445827,0.00211483,64407.0,64406.0,0.028]
[1724545451323,0.36291483,64407.0,64406.0,0.028]
[1724545454919,0.36291483,64407.0,64406.0,0.4938]
[1724545455121,0.36291483,64407.0,64406.0,0.971397]
[1724545455315,0.36291483,64407.0,64406.0,0.571397]
[1724545455519,0.00211483,64407.0,64406.0,0.571397]
[1724545455925,0.00211483,64407.0,64406.0,0.971397]
[1724545456627,0.00211483,64407.0,64406.0,0.571397]
[1724545458026,0.00211483,64407.0,64406.0,0.05226446]
[1724545458227,0.00211483,64407.0,64406.0,0.028]
[1724545470731,0.50651483,64407.0,64406.0,0.028]
[1724545477036,0.00211483,64407.0,64406.0,0.028]
[1724545493958,0.00983541,64407.0,64406.0,0.028]
[1724545496738,0.08743141,64407.0,64406.0,0.028]
[1724545497142,1.03071258,64407.0,64406.0,0.028]
[1724545497349,1.03071258,64407.0,64400.0,0.00023286]
[1724545497350,0.177603,64401.0,64400.0,0.00023286]
[1724545497542,0.3609627,64401.0,64400.0,0.00023286]
[1724545498240,0.3610027,64401.0,64400.0,0.00023286]
[1724545499954,0.3619227,64401.0,64400.0,0.00423286]
[1724545500249,0.3629227,64401.0,64400.0,0.00923286]
[1724545500785,0.6305227,64401.0,64400.0,0.00923286]
[1724545501653,0.6538427,64401.0,64400.0,0.00923286]
[1724545503150,0.6518427,64401.0,64400.0,0.00223286]
[1724545503344,0.65759107,64401.0,64400.0,0.00423286]
[1724545503557,0.91719107,64401.0,64400.0,0.00423286]
[1724545504646,0.55647107,64401.0,64400.0,0.00423286]
[1724545504961,0.91727107,64401.0,64400.0,0.00423286]
[1724545505760,0.55647107,64401.0,64400.0,0.00423286]
[1724545506054,0.91727107,64401.0,64400.0,0.00423286]
[1724545506255,0.36675107,64401.0,64400.0,0.00423286]
[1724545506560,0.00595107,64401.0,64400.0,0.44263686]
[1724545508753,0.00595107,64401.0,64400.0,0.90847686]
[1724545510918,0.0002027,64401.0,64400.0,0.90847686]
[1724545511153,0.077584,64417.0,64412.0,0.07759]
[1724545511354,0.077584,64417.0,64412.0,0.53839]
[1724545511680,0.28082,64420.0,64412.0,0.53839]
[1724545512016,0.28082,64420.0,64412.0,0.53843]
[1724545512554,0.01123286,64413.0,64412.0,0.53843]
[1724545512755,0.01123286,64413.0,64412.0,0.43843]
[1724545512955,0.01123286,64413.0,64412.0,0.53843]
[1724545513463,0.02223286,64413.0,64412.0,0.53843]
[1724545513650,0.27472,64426.0,64412.0,1.6874]
[1724545513852,0.2514,64426.0,64423.0,0.1]
[1724545514060,0.2514,64426.0,64423.0,0.177576]
[1724545514463,0.2514,64426.0,64424.0,4e-05]
[1724545514898,0.27541284,64425.0,64424.0,4e-05]
[1724545515053,0.00601284,64425.0,64424.0,4e-05]
[1724545515259,0.00023286,64431.0,64424.0,4e-05]
[1724545515461,0.00023286,64431.0,64430.0,0.1]
[1724545516062,0.00609447,64431.0,64430.0,0.10004]
[1724545516263,0.00023286,64431.0,64430.0,0.10004]
[1724545516663,0.00023286,64431.0,64430.0,0.10104]
[1724545516664,0.01323286,64431.0,64430.0,0.10104]
[1724545516861,0.01323286,64431.0,64430.0,0.178608]
[1724545517068,0.02623286,64431.0,64430.0,0.079608]
[1724545517415,0.02623286,64431.0,64430.0,0.00204]
[1724545517961,0.01323286,64431.0,64430.0,0.00104]
[1724545518158,0.01323286,64431.0,64430.0,0.00404]
[1724545519167,0.00323286,64431.0,64430.0,0.00304]
[1724545519669,0.00523286,64431.0,64430.0,4e-05]
[1724545521265,0.02855286,64431.0,64430.0,4e-05]
[1724545521961,0.10611986,64431.0,64430.0,4e-05]
[1724545522155,0.10611986,64431.0,64418.0,0.43861586]
[1724545522156,0.077568,64430.0,64418.0,0.43861586]
[1724545522361,0.3608,64424.0,64418.0,0.36103286]
[1724545522563,0.438368,64430.0,64418.0,0.36103286]
[1724545522757,0.5004,64423.0,64418.0,0.36103286]
[1724545522969,4e-05,64419.0,64418.0,0.43861586]
[1724545523269,4e-05,64419.0,64418.0,0.44861586]
[1724545523566,4e-05,64419.0,64418.0,0.45861586]
[1724545523771,4e-05,64419.0,64418.0,0.44861586]
[1724545523970,4e-05,64419.0,64418.0,0.45861586]
[1724545524188,0.00104,64419.0,64418.0,0.45861586]
[1724545525463,0.00204,64419.0,64418.0,0.09781586]
[1724545525865,0.0077809,64419.0,64418.0,0.09781586]
[1724545526765,0.00204,64419.0,64418.0,0.09781586]
[1724545531862,0.00204,64419.0,64418.0,0.02023286]
[1724545532278,0.46776,64419.0,64418.0,0.02023286]
[1724545532670,0.545341,64419.0,64418.0,0.02023286]
[1724545533177,0.079621,64419.0,64418.0,0.02023286]
[1724545533402,0.00204,64419.0,64418.0,0.02023286]
[1724545533568,0.00204,64419.0,64418.0,0.09781586]
[1724545543975,0.00204,64419.0,64418.0,0.02023286]
[1724545544399,0.00204,64419.0,64408.0,0.04582875]
[1724545544570,0.00204,64419.0,64404.0,0.061105]
[1724545544571,0.3608,64413.0,64407.0,0.077596]
[1724545544772,0.5149,64412.0,64407.0,0.077596]
[1724545544983,0.7835,64412.0,64407.0,0.077596]
[1724545545483,4e-05,64408.0,64407.0,0.077596]
[1724545546483,0.00587022,64408.0,64407.0,0.014]
[1724545546679,4e-05,64408.0,64407.0,0.014]
[1724545546880,0.00104,64408.0,64407.0,0.006]
[1724545547085,0.00204,64408.0,64407.0,0.02]
[1724545548689,4e-05,64408.0,64407.0,0.002]
[1724545548987,4e-05,64408.0,64407.0,0.004]
[1724545560379,0.02336,64408.0,64407.0,0.004]
[1724545560583,0.12336,64408.0,64407.0,0.004]
[1724545560784,0.12336,64408.0,64407.0,0.002]
[1724545560988,0.12836,64408.0,64407.0,0.002]
[1724545561596,0.13236,64408.0,64403.0,0.00023286]
[1724545561780,0.1,64404.0,64403.0,0.00023286]
[1724545562495,0.10004,64404.0,64403.0,0.00023286]
[1724545562994,4e-05,64404.0,64403.0,0.00023286]
[1724545563186,4e-05,64404.0,64403.0,0.10023286]
[1724545564193,0.00104,64404.0,64403.0,0.10023286]
[1724545564797,0.00104,64404.0,64403.0,0.17783386]
[1724545566090,0.00204,64404.0,64403.0,0.17783386]
[1724545573798,0.10204,64404.0,64403.0,0.00023286]
[1724545574793,0.17964,64404.0,64403.0,0.00023286]
[1724545579700,0.54044,64404.0,64403.0,0.00023286]
[1724545580122,0.56376,64404.0,64403.0,0.00023286]
[1724545581105,0.64136,64404.0,64403.0,0.00023286]
[1724545581301,0.64136,64404.0,64390.0,0.3608]
[1724545581302,0.1,64393.0,64390.0,0.3608]
[1724545582101,4e-05,64391.0,64390.0,0.3608]
[1724545582811,4e-05,64391.0,64390.0,0.3668]
[1724545583105,4e-05,64391.0,64390.0,0.3728]
[1724545583320,0.00104,64391.0,64390.0,0.3728]
[1724545583519,0.36184,64391.0,64390.0,0.012]
[1724545584212,0.00104,64391.0,64390.0,0.012]
[1724545584406,0.00104,64391.0,64390.0,0.006]
[1724545584594,0.10204,64391.0,64390.0,0.012]
[1724545584799,0.07762,64387.0,64375.0,0.03902093]
[1724545585104,0.077635,64375.0,64369.0,0.3608]
[1724545585302,0.1,64370.0,64369.0,0.3608]
[1724545585901,0.10023523,64370.0,64369.0,0.3608]
[1724545586502,0.00123523,64370.0,64369.0,0.3668]
[1724545588702,0.00223523,64370.0,64369.0,0.3668]
[1724545592201,0.00223523,64370.0,64369.0,0.006]
[1724545592402,0.10319523,64370.0,64369.0,0.006]
[1724545594913,0.00223523,64370.0,64369.0,0.083642]
[1724545595415,0.00088,64380.0,64369.0,1.911282]
[1724545595616,0.00767549,64388.0,64381.0,0.077627]
[1724545596010,0.02332,64386.0,64382.0,0.077626]
[1724545596317,0.38412,64393.0,64383.0,0.3608]
[1724545596556,0.461733,64393.0,64385.0,0.077622]
[1724545596711,0.38412,64393.0,64383.0,0.36084]
[1724545596911,0.3608,64393.0,64383.0,0.36084]
[1724545597111,0.00023286,64394.0,64390.0,0.3608]
[1724545597311,0.00625994,64394.0,64390.0,0.3608]
[1724545597621,0.00625994,64394.0,64392.0,4e-05]
[1724545597812,0.00625994,64394.0,64393.0,4e-05]
[1724545598613,0.01625994,64394.0,64393.0,4e-05]
[1724545599309,0.01925994,64394.0,64393.0,4e-05]
[1724545599917,0.03325994,64394.0,64393.0,4e-05]
[1724545600910,0.07762,64387.0,64382.0,0.00023286]
[1724545601111,0.6008,64385.0,64382.0,0.00023286]
[1724545601619,4e-05,64383.0,64382.0,0.00023286]
[1724545603183,0.00204,64383.0,64382.0,0.00023286]
[1724545603313,0.079665,64383.0,64382.0,0.00023286]
[1724545604516,0.080665,64383.0,64382.0,0.00023286]
[1724545605415,0.08460136,64383.0,64382.0,0.00023286]
[1724545605623,0.09060136,64383.0,64382.0,0.00023286]
[1724545606025,0.09560136,64383.0,64382.0,0.00023286]
[1724545607627,0.56156136,64383.0,64382.0,0.00023286]
[1724545609243,0.69084136,64383.0,64382.0,0.00023286]
[1724545609632,0.22488136,64383.0,64382.0,0.00023286]
[1724545613425,0.30250636,64383.0,64382.0,0.00023286]
[1724545613733,1.01321636,64383.0,64364.0,0.3608]
[1724545614025,1.01321636,64383.0,64364.0,0.6131]
[1724545614026,0.3608,64371.0,64364.0,0.6131]
[1724545614231,0.3608,64371.0,64367.0,0.077643]
[1724545615123,0.3618,64371.0,64367.0,0.077643]
[1724545615725,0.3618,64371.0,64363.0,0.32245537]
[1724545615925,0.3618,64371.0,64363.0,0.40010337]
[1724545616124,0.3608,64365.0,64363.0,0.40010337]
[1724545616428,4e-05,64364.0,64363.0,0.07780337]
[1724545617522,4e-05,64364.0,64363.0,0.00015537]
[1724545617931,0.00104,64364.0,64363.0,0.00015537]
[1724545619734,0.00204,64364.0,64363.0,0.00015537]
[1724545619937,0.00796801,64364.0,64363.0,0.00015537]
[1724545620542,0.00204,64364.0,64363.0,0.00015537]
[1724545620730,0.00204,64364.0,64363.0,0.94392437]
[1724545621247,0.00204,64364.0,64363.0,0.54392437]
[1724545621442,0.00204,64364.0,64363.0,0.94392437]
[1724545622235,0.00204,64364.0,64363.0,0.54392437]
[1724545622634,0.00204,64364.0,64363.0,0.94392437]
[1724545622837,0.00204,64364.0,64363.0,0.54392437]
[1724545623633,0.00204,64364.0,64363.0,0.07780437]
[1724545623834,0.00204,64364.0,64363.0,0.54392437]
[1724545624034,0.00204,64364.0,64363.0,0.94392437]
[1724545624235,0.00204,64364.0,64363.0,0.07780437]
[1724545624453,0.00204,64364.0,64363.0,0.54392437]
[1724545624636,0.00204,64364.0,64363.0,0.07780437]
[1724545626636,0.00204,64364.0,64363.0,0.54392437]
[1724545628854,0.00204,64364.0,64363.0,0.07780437]
[1724545629438,0.00204,64364.0,64363.0,0.54392437]
[1724545629641,0.00204,64364.0,64363.0,0.07780437]
[1724545632548,0.00023286,64375.0,64374.0,0.077635]
[1724545633437,0.00023286,64375.0,64374.0,0.943715]
[1724545633642,0.077617,64391.0,64374.0,0.943715]
[1724545633643,0.3608,64393.0,64392.0,0.077616]
[1724545634349,0.3608,64393.0,64392.0,0.077656]
[1724545635045,0.3608,64393.0,64392.0,4e-05]
[1724545635252,0.438417,64393.0,64392.0,4e-05]
[1724545635441,0.3748,64393.0,64392.0,4e-05]
[1724545636045,0.3888,64393.0,64392.0,4e-05]
[1724545640353,1.278,64393.0,64386.0,0.00023305]
[1724545640550,0.3608,64387.0,64381.0,0.3223]
[1724545640748,0.24,64382.0,64381.0,0.3223]
[1724545641540,0.24004,64382.0,64381.0,0.3223]
[1724545641845,0.31767,64382.0,64381.0,0.3223]
[1724545642451,0.00504,64382.0,64381.0,0.3223]
[1724545643147,0.00904,64382.0,64381.0,0.3223]
[1724545644352,0.00904,64382.0,64379.0,0.077633]
[1724545645056,4e-05,64380.0,64379.0,0.077633]
[1724545646354,0.00504,64380.0,64379.0,0.077633]
[1724545653458,0.00504,64380.0,64379.0,0.10190601]
[1724545654761,0.00504,64380.0,64379.0,0.10190622]
[1724545655555,0.00504,64380.0,64379.0,0.155266]
[1724545656264,0.00504,64380.0,64379.0,1.02727758]
[1724545656720,0.00023305,64386.0,64385.0,0.077626]
[1724545657565,0.00023305,64386.0,64385.0,0.077666]
[1724545657958,0.00923305,64386.0,64385.0,0.077666]
[1724545658464,0.01723305,64386.0,64385.0,0.077666]
[1724545662074,0.01723305,64386.0,64385.0,0.438466]
[1724545665467,0.01723305,64386.0,64385.0,0.516092]
[1724545667572,0.01723305,64386.0,64385.0,0.438466]
[1724545670771,0.09485805,64386.0,64385.0,4e-05]
[1724545673677,0.01723305,64386.0,64385.0,4e-05]
[1724545674884,0.02301847,64386.0,64385.0,4e-05]
[1724545675075,0.56660347,64386.0,64385.0,4e-05]
[1724545675280,0.88897847,64386.0,64370.0,0.42203654]
[1724545675496,0.077631,64381.0,64370.0,0.3608]
[1724545675690,0.7606,64380.0,64372.0,0.077642]
[1724545675884,0.838233,64380.0,64372.0,0.077642]
[1724545677190,0.839233,64380.0,64372.0,0.081642]
[1724545677683,0.839233,64380.0,64372.0,0.004]
[1724545677877,0.3608,64373.0,64372.0,0.004]
[1724545678584,0.3608,64373.0,64372.0,0.007]
[1724545679285,0.3618,64373.0,64372.0,0.003]
[1724545679582,0.3618,64373.0,64372.0,0.007]
[1724545679583,0.3628,64373.0,64372.0,0.007]
[1724545680486,0.440441,64373.0,64372.0,0.007]
[1724545681384,0.906481,64373.0,64372.0,0.007]
[1724545681776,1.306481,64373.0,64372.0,1.9e-07]
[1724545681981,1.306481,64373.0,64359.0,0.077657]
[1724545681982,1.23478117,64373.0,64359.0,0.077657]
[1724545682184,0.24,64364.0,64359.0,0.077657]
[1724545682477,0.2679,64363.0,64359.0,0.077657]
[1724545682679,0.5172,64363.0,64359.0,0.077657]
[1724545682882,4e-05,64360.0,64359.0,0.077657]
[1724545683279,4e-05,64360.0,64359.0,0.080657]
[1724545683589,4e-05,64360.0,64359.0,0.084657]
[1724545683996,4e-05,64360.0,64359.0,0.080657]
[1724545684231,4e-05,64360.0,64359.0,0.084657]
[1724545684232,0.00104,64360.0,64359.0,0.084657]
[1724545684587,0.00104,64360.0,64359.0,0.081657]
[1724545684782,0.00204,64360.0,64359.0,0.081657]
[1724545685685,0.00798326,64360.0,64359.0,0.081657]
[1724545694697,0.08563926,64360.0,64359.0,0.004]
[1724545695697,0.08563926,64360.0,64350.0,0.3223]
[1724545695698,0.44543926,64360.0,64350.0,0.3223]
[1724545695896,0.3608,64354.0,64353.0,0.077665]
[1724545697606,0.3618,64354.0,64353.0,0.077665]
[1724545699101,0.3628,64354.0,64353.0,0.077665]
[1724545702706,0.07767,64349.0,64342.0,0.3223]
[1724545702895,0.3608,64344.0,64337.0,0.254]
[1724545703698,0.3608,64344.0,64336.0,0.15743672]
[1724545704200,0.3608,64344.0,64341.0,0.077679]
[1724545704403,0.24,64343.0,64341.0,0.077679]
[1724545704601,0.24,64343.0,64336.0,0.23512172]
[1724545704602,0.317677,64343.0,64336.0,0.23512172]
[1724545704907,0.317677,64343.0,64336.0,0.077685]
[1724545705110,0.077678,64342.0,64336.0,0.077685]
[1724545705298,0.077678,64342.0,64337.0,0.077684]
[1724545706001,0.07768,64341.0,64337.0,0.077684]
[1724545708295,0.3608,64339.0,64337.0,0.077684]
[1724545709594,0.3618,64339.0,64337.0,0.077684]
[1724545710208,0.3628,64339.0,64337.0,0.077684]
[1724545710506,0.3628,64339.0,64329.0,0.3608]
[1724545710507,0.3628,64339.0,64338.0,0.077683]
[1724545710705,0.24,64349.0,64329.0,0.3608]
[1724545710706,0.438465,64353.0,64336.0,0.3608]
[1724545710909,0.438465,64353.0,64351.0,0.077667]
[1724545711101,0.00623178,64352.0,64351.0,0.077667]
[1724545711411,0.07789905,64352.0,64351.0,0.077667]
[1724545711600,0.07789905,64352.0,64351.0,0.077707]
[1724545712408,0.00023305,64352.0,64351.0,0.077707]
[1724545715406,0.24023305,64352.0,64351.0,4e-05]
[1724545715907,0.25823305,64352.0,64351.0,4e-05]
[1724545718099,0.33589905,64352.0,64351.0,4e-05]
[1724545718404,0.33689905,64352.0,64351.0,4e-05]
[1724545719011,0.32789905,64352.0,64351.0,4e-05]
[1724545719314,0.33789905,64352.0,64351.0,4e-05]
[1724545720311,0.36121905,64352.0,64351.0,4e-05]
[1724545721004,0.82741905,64352.0,64351.0,4e-05]
[1724545721203,0.82741905,64352.0,64340.0,0.3223]
[1724545721204,1.22741905,64352.0,64340.0,0.3223]
[1724545721403,0.3608,64342.0,64340.0,0.3223]
[1724545722014,4e-05,64341.0,64340.0,0.3223]
[1724545722405,4e-05,64341.0,64340.0,0.3243]
[1724545724111,4e-05,64341.0,64340.0,0.3233]
[1724545724309,4e-05,64341.0,64340.0,0.3243]
[1724545724716,4e-05,64341.0,64340.0,0.002]
[1724545725220,0.0060019,64341.0,64340.0,0.002]
[1724545725617,0.2650019,64341.0,64340.0,0.002]
[1724545725815,0.5235019,64341.0,64340.0,0.002]
[1724545728417,0.6011809,64341.0,64340.0,0.002]
[1724545730211,0.9619809,64341.0,64340.0,0.002]
[1724545730815,0.8843019,64341.0,64340.0,0.002]
[1724545732220,0.5235019,64341.0,64340.0,0.002]
[1724545732417,0.8843019,64341.0,64340.0,0.002]
[1724545732827,0.15458721,64371.0,64340.0,0.242]
[1724545733134,0.12785433,64459.0,64340.0,0.242]
[1724545733135,0.12856,64417.0,64402.0,0.077605]
[1724545733326,0.00799307,64413.0,64397.0,0.077611]
[1724545733622,0.00028,64413.0,64398.0,0.07761]
[1724545733930,0.00028,64413.0,64412.0,4e-05]
[1724545734125,0.00028,64413.0,64412.0,0.8658]
[1724545734337,0.00228,64413.0,64412.0,0.8658]
[1724545734903,0.00028,64413.0,64412.0,0.8658]
[1724545735322,0.1288,64413.0,64412.0,0.8658]
[1724545735527,0.1418,64413.0,64412.0,0.8658]
[1724545737122,0.1538,64413.0,64412.0,0.8658]
[1724545738118,0.15376,64413.0,64412.0,0.8658]
[1724545738922,0.02528,64413.0,64412.0,0.8658]
[1724545739120,0.24405854,64419.0,64412.0,4e-05]
[1724545739325,0.24,64419.0,64416.0,0.3608]
[1724545739523,0.12848,64418.0,64416.0,0.3608]
[1724545739724,0.1361097,64418.0,64416.0,0.3608]
[1724545740799,0.0076297,64418.0,64416.0,0.3608]
[1724545740934,0.12848,64417.0,64416.0,0.3608]
[1724545741328,0.03572831,64418.0,64416.0,0.3608]
[1724545741631,0.12848,64417.0,64416.0,0.3608]
[1724545742134,0.14248,64417.0,64416.0,0.3608]
[1724545742325,0.014,64417.0,64416.0,0.3608]
[1724545742525,0.14248,64417.0,64416.0,0.3608]
[1724545742727,0.014,64417.0,64416.0,0.3608]
[1724545742992,0.14248,64417.0,64416.0,0.3608]
[1724545743325,0.14548,64417.0,64416.0,0.3618]
[1724545743834,0.017,64417.0,64416.0,0.3618]
[1724545744027,0.14548,64417.0,64416.0,0.3618]
[1724545744340,0.13148,64417.0,64416.0,0.3628]
[1724545744731,0.003,64417.0,64416.0,0.3618]
[1724545744933,0.14344,64417.0,64416.0,0.3628]
[1724545745839,0.015,64417.0,64416.0,0.3628]
[1724545746141,0.14344,64417.0,64416.0,0.3628]
[1724545746937,0.015,64417.0,64416.0,0.440389]
[1724545747642,0.14448,64417.0,64416.0,0.440389]
[1724545749636,0.015,64417.0,64416.0,0.440389]
[1724545749828,0.14448,64417.0,64416.0,0.440389]
[1724545750641,0.14448,64417.0,64393.0,0.077615]
[1724545750642,0.077596,64411.0,64393.0,0.077615]
[1724545750833,0.24,64395.0,64388.0,0.3608]
[1724545751036,0.24,64395.0,64368.0,0.06120206]
[1724545751037,0.24,64389.0,64379.0,0.3608]
[1724545751241,0.24,64381.0,64379.0,0.3608]
[1724545752663,0.241,64381.0,64374.0,0.00023286]
[1724545753261,0.001,64381.0,64374.0,0.00023286]
[1724545753644,0.003,64381.0,64374.0,0.00023286]
[1724545754247,0.001,64381.0,64374.0,0.00023286]
[1724545755033,0.00621172,64381.0,64374.0,0.00023286]
[1724545755847,0.001,64381.0,64374.0,0.00023286]
[1724545756944,0.3608,64402.0,64387.0,0.077623]
[1724545757146,0.3608,64402.0,64380.0,0.3608]
[1724545757147,0.3608,64402.0,64392.0,0.3608]
[1724545758046,0.2698,64399.0,64392.0,0.3608]
[1724545758747,0.2588,64399.0,64392.0,0.3608]
[1724545759139,0.00528277,64399.0,64392.0,0.438418]
[1724545759341,0.36103286,64402.0,64392.0,0.438418]
[1724545760951,0.36103286,64402.0,64392.0,0.440418]
[1724545761251,0.36626448,64402.0,64392.0,0.440418]
[1724545761455,0.36626448,64402.0,64392.0,0.439418]
[1724545761847,0.36626448,64402.0,64392.0,0.438418]
[1724545762052,0.36626448,64402.0,64392.0,0.440418]
[1724545762555,0.36626448,64402.0,64395.0,0.04590154]
[1724545763546,0.44387148,64402.0,64395.0,0.04590154]
[1724545764246,0.077607,64401.0,64395.0,0.04590154]
[1724545764551,0.05307148,64402.0,64395.0,0.04590154]
[1724545764746,0.05307148,64402.0,64396.0,0.04590154]
[1724545764954,0.05407148,64402.0,64395.0,0.04590154]
[1724545765145,0.05407148,64402.0,64396.0,0.04590154]
[1724545765346,0.077607,64401.0,64395.0,0.04590154]
[1724545765654,0.07761,64399.0,64395.0,0.04590154]
[1724545766056,0.07761,64399.0,64396.0,0.04590154]
[1724545766447,0.077611,64398.0,64395.0,0.04590154]
[1724545766851,0.077612,64397.0,64395.0,0.04590154]
[1724545767153,0.077612,64397.0,64396.0,0.04590154]
[1724545767355,0.077612,64397.0,64392.0,0.42200206]
[1724545767356,0.077612,64397.0,64393.0,0.06120206]
[1724545767654,0.077612,64397.0,64396.0,0.04573201]
[1724545768011,0.002,64398.0,64393.0,0.06120206]
[1724545768156,0.003,64399.0,64397.0,0.04573139]
[1724545768652,0.003,64399.0,64398.0,0.04573139]
[1724545768956,0.002,64397.0,64395.0,0.06120206]
[1724545769348,0.002,64397.0,64395.0,0.13881506]
[1724545769548,0.002,64397.0,64396.0,0.06120206]
[1724545769749,0.005,64399.0,64395.0,0.077613]
[1724545769954,0.005,64399.0,64398.0,0.3608]
[1724545770256,0.009,64399.0,64398.0,0.3608]
[1724545770847,0.00521021,64404.0,64398.0,0.3608]
[1724545771058,0.00023286,64405.0,64401.0,0.04570955]
[1724545771751,0.00023286,64405.0,64399.0,0.04570955]
[1724545771752,0.077608,64400.0,64399.0,0.04570955]
[1724545772759,0.16042412,64400.0,64399.0,0.04570955]
[1724545772953,0.08281612,64400.0,64395.0,0.0457274]
[1724545773148,0.077614,64395.0,64394.0,0.0457274]
[1724545773348,0.2405,64399.0,64392.0,0.0457274]
[1724545773653,0.3608,64395.0,64392.0,0.0457274]
[1724545773850,0.3608,64395.0,64389.0,0.32253286]
[1724545773851,0.3608,64395.0,64391.0,0.0457274]
[1724545774052,4e-05,64393.0,64392.0,0.0457274]
[1724545774779,4e-05,64393.0,64390.0,0.04574897]
[1724545775061,0.077619,64391.0,64390.0,0.04574897]
[1724545775561,0.077619,64391.0,64389.0,0.00023286]
[1724545775562,0.07762,64390.0,64389.0,0.00023286]
[1724545776256,0.07766,64390.0,64389.0,0.00023286]
[1724545776668,0.08166,64390.0,64389.0,0.00023286]
[1724545777165,0.08566,64390.0,64389.0,0.00023286]
[1724545777457,0.09366,64390.0,64389.0,0.00023286]
[1724545777854,0.09166,64390.0,64389.0,0.00023286]
[1724545778453,0.22082,64390.0,64389.0,0.00023286]
[1724545778659,0.21282,64390.0,64389.0,0.00023286]
[1724545778863,0.21882,64390.0,64389.0,0.00023286]
[1724545779757,0.21382,64390.0,64389.0,0.00023286]
[1724545779951,0.21982,64390.0,64389.0,0.00023286]
[1724545780664,0.22582,64390.0,64389.0,0.00023286]
[1724545780923,0.22582,64390.0,64384.0,0.04574897]
[1724545781059,0.3608,64385.0,64383.0,0.04574897]
[1724545781259,0.3608,64385.0,64382.0,0.04574897]
[1724545781260,0.077629,64383.0,64382.0,0.04574897]
[1724545781951,0.077669,64383.0,64382.0,0.04574897]
[1724545782157,0.07763,64382.0,64381.0,0.04574897]
[1724545782859,0.07763,64382.0,64376.0,0.06120406]
[1724545782860,0.07767,64382.0,64380.0,0.04574897]
[1724545783160,0.077632,64380.0,64379.0,0.04574897]
[1724545783753,0.077632,64380.0,64378.0,0.04574897]
[1724545783954,0.077632,64380.0,64379.0,0.04574897]
[1724545783955,4e-05,64380.0,64379.0,0.04574897]
[1724545784159,4e-05,64380.0,64377.0,0.0609712]
[1724545784359,4e-05,64380.0,64376.0,0.13884006]
[1724545784756,0.00521821,64380.0,64376.0,0.13884006]
[1724545784956,0.00521821,64380.0,64379.0,0.04586248]
[1724545785157,0.00521821,64380.0,64379.0,0.04582248]
[1724545785158,0.00517821,64380.0,64379.0,0.04582248]
[1724545785357,0.001,64380.0,64376.0,0.07786886]
[1724545785570,0.002,64380.0,64376.0,0.07786886]
[1724545786456,0.077629,64383.0,64376.0,0.07786886]
[1724545786651,0.077629,64383.0,64376.0,0.07986886]
[1724545787253,0.07763,64382.0,64376.0,0.07986886]
[1724545788466,0.07763,64382.0,64376.0,0.07786886]
[1724545788667,0.07763,64382.0,64376.0,0.07986886]
[1724545789163,0.077631,64381.0,64376.0,0.07986886]
[1724545790315,4e-05,64377.0,64376.0,0.07986886]
[1724545791667,4e-05,64377.0,64376.0,0.07786886]
[1724545791966,4e-05,64377.0,64376.0,0.07986886]
[1724545801171,4e-05,64377.0,64376.0,0.00223286]
[1724545801373,0.077676,64377.0,64376.0,0.00223286]
[1724545802367,4e-05,64377.0,64376.0,0.14084106]
[1724545803178,4e-05,64377.0,64376.0,0.07986986]
[1724545804985,0.077676,64377.0,64376.0,0.00223286]
[1724545805281,0.580276,64377.0,64376.0,0.00223286]
[1724545813876,0.50264,64377.0,64376.0,0.00223286]
[1724545814080,4e-05,64377.0,64376.0,0.07986986]
[1724545814305,4e-05,64377.0,64376.0,0.54586986]
[1724545814641,0.19,64408.0,64376.0,1.3473342]
[1724545814642,0.2304,64394.0,64376.0,1.3473342]
[1724545814793,0.2304,64394.0,64387.0,0.3608]
[1724545814978,0.00540055,64389.0,64388.0,0.077623]
[1724545815182,0.00540055,64389.0,64388.0,0.077663]
[1724545815988,0.01440055,64389.0,64388.0,0.077663]
[1724545816691,0.02640055,64389.0,64388.0,0.077663]
[1724545817191,0.01740055,64389.0,64388.0,0.077663]
[1724545817488,0.01040055,64389.0,64388.0,0.077663]
[1724545818689,0.00840055,64389.0,64388.0,0.077663]
[1724545818882,0.01140055,64389.0,64388.0,0.077663]
[1724545819793,0.01140055,64389.0,64388.0,4e-05]
[1724545820718,0.3608,64425.0,64388.0,1.48506409]
[1724545820998,0.07172311,64443.0,64388.0,1.48506409]
[1724545820999,0.00774999,64419.0,64415.0,0.07759]
[1724545821203,0.48858483,64429.0,64418.0,0.3608]
[1724545821593,0.077579,64424.0,64418.0,0.3608]
[1724545821794,0.08522336,64424.0,64418.0,0.3608]
[1724545821993,0.44602336,64424.0,64417.0,0.00023286]
[1724545822203,0.014,64419.0,64417.0,0.00023286]
[1724545822704,0.07758,64423.0,64417.0,0.00023286]
[1724545823501,0.01396,64419.0,64417.0,0.00023286]
[1724545823697,0.05565615,64418.0,64417.0,0.00023286]
[1724545825600,0.05565615,64418.0,64417.0,0.00123286]
[1724545826103,0.06965615,64418.0,64417.0,0.00123286]
[1724545826304,0.08365615,64418.0,64417.0,0.00123286]
[1724545826507,0.028,64418.0,64417.0,0.00123286]
[1724545828010,0.03454697,64418.0,64417.0,0.00123286]
[1724545831708,0.39534697,64418.0,64405.0,0.3608]
[1724545831912,0.438395,64411.0,64405.0,0.3608]
[1724545832114,0.247,64410.0,64405.0,0.3608]